[Event "Early-Titled-Tuesday-Blitz-June-18-2024"]
[Site "Chess.com"]
[Date "2024.06.18"]
[Round "4"]
[White "CristianS27"]
[Black "FredddieCroderg"]
[Result "0-1"]
[WhiteElo "2483"]
[BlackElo "2316"]
[TimeControl "180+1"]
[EndTime "8:40:54 PDT"]
[Termination "FredddieCroderg won on time"]

1. e4 {[%clk 0:03:00.9]} 1... c6 {[%clk 0:02:59.4]} 2. d4 {[%clk 0:02:59.1]}
2... d5 {[%clk 0:02:59.8]} 3. exd5 {[%clk 0:02:59.9]} 3... cxd5 {[%clk
0:02:59.5]} 4. c4 {[%clk 0:03:00.7]} 4... Nf6 {[%clk 0:02:58.5]} 5. Nc3 {[%clk
0:03:01.5]} 5... e6 {[%clk 0:02:56.6]} 6. c5 {[%clk 0:03:01.5]} 6... Be7 {[%clk
0:02:56.3]} 7. Nf3 {[%clk 0:03:01.2]} 7... O-O {[%clk 0:02:56.8]} 8. Bd3 {[%clk
0:03:01.8]} 8... b6 {[%clk 0:02:56.5]} 9. b4 {[%clk 0:03:02.5]} 9... a5 {[%clk
0:02:55.3]} 10. Na4 {[%clk 0:03:03.2]} 10... Nbd7 {[%clk 0:02:53.1]} 11. Bf4
{[%clk 0:03:01.2]} 11... axb4 {[%clk 0:02:42.4]} 12. c6 {[%clk 0:03:00.3]} 12...
Nh5 {[%clk 0:02:35.3]} 13. Bg3 {[%clk 0:02:55.2]} 13... Ndf6 {[%clk 0:02:03.1]}
14. c7 {[%clk 0:02:49.6]} 14... Qe8 {[%clk 0:01:57.9]} 15. Nxb6 {[%clk
0:02:49.7]} 15... Ra3 {[%clk 0:01:49.7]} 16. Ne5 {[%clk 0:02:29.5]} 16... b3
{[%clk 0:01:27.6]} 17. axb3 {[%clk 0:02:08]} 17... Bb4+ {[%clk 0:01:27.2]} 18.
Kf1 {[%clk 0:02:07.5]} 18... Rxa1 {[%clk 0:01:27.3]} 19. Qxa1 {[%clk 0:02:08.4]}
19... Ne4 {[%clk 0:01:27.2]} 20. Qa4 {[%clk 0:01:56.7]} 20... Qe7 {[%clk
0:01:02.2]} 21. Nxc8 {[%clk 0:00:45.4]} 21... Rxc8 {[%clk 0:00:45.4]} 22. Nc6
{[%clk 0:00:34]} 22... Nhxg3+ {[%clk 0:00:43.6]} 23. hxg3 {[%clk 0:00:34.9]}
23... Qxc7 {[%clk 0:00:43.1]} 24. Qxb4 {[%clk 0:00:11]} 24... Qxc6 {[%clk
0:00:39.6]} 25. Kg1 {[%clk 0:00:06.1]} 25... Qc1+ {[%clk 0:00:35.7]} 26. Bf1
{[%clk 0:00:06.2]} 26... Nd2 {[%clk 0:00:14]} 27. Kh2 {[%clk 0:00:01.5]} 27...
Nxf1+ {[%clk 0:00:13.8]} 0-1

[Event "Early-Titled-Tuesday-Blitz-June-18-2024"]
[Site "Chess.com"]
[Date "2024.06.18"]
[Round "4"]
[White "Triumphmate"]
[Black "NigiriSushies"]
[Result "0-1"]
[WhiteElo "2480"]
[BlackElo "2312"]
[TimeControl "180+1"]
[EndTime "8:40:55 PDT"]
[Termination "NigiriSushies won on time"]

1. e4 {[%clk 0:02:11.2]} 1... b6 {[%clk 0:02:55.6]} 2. d4 {[%clk 0:02:10.7]}
2... Bb7 {[%clk 0:02:54.9]} 3. Nc3 {[%clk 0:02:07.8]} 3... e6 {[%clk 0:02:48.8]}
4. Bd3 {[%clk 0:02:05.6]} 4... Nf6 {[%clk 0:02:48.2]} 5. Nf3 {[%clk 0:01:53.1]}
5... Bb4 {[%clk 0:02:47.3]} 6. Qe2 {[%clk 0:01:51.2]} 6... d5 {[%clk 0:02:38.4]}
7. exd5 {[%clk 0:01:52.1]} 7... Nxd5 {[%clk 0:02:37.2]} 8. Bd2 {[%clk
0:01:47.7]} 8... Nc6 {[%clk 0:02:29]} 9. O-O {[%clk 0:01:39.1]} 9... Nf6 {[%clk
0:02:25.8]} 10. Rae1 {[%clk 0:01:31.1]} 10... O-O {[%clk 0:02:17.5]} 11. Ne4
{[%clk 0:01:24.8]} 11... Bxd2 {[%clk 0:02:08.9]} 12. Qxd2 {[%clk 0:01:25.7]}
12... h6 {[%clk 0:02:00]} 13. c3 {[%clk 0:01:23.8]} 13... a5 {[%clk 0:01:54.6]}
14. Bb1 {[%clk 0:01:23.9]} 14... a4 {[%clk 0:01:53.8]} 15. a3 {[%clk 0:01:12.8]}
15... Ba6 {[%clk 0:01:45.5]} 16. Nxf6+ {[%clk 0:00:51.4]} 16... Qxf6 {[%clk
0:01:46.4]} 17. Be4 {[%clk 0:00:51.6]} 17... Na5 {[%clk 0:01:04.9]} 18. Bxa8
{[%clk 0:00:37.6]} 18... Rxa8 {[%clk 0:01:03.8]} 19. Ne5 {[%clk 0:00:29.5]}
19... Nb3 {[%clk 0:00:59.1]} 20. Qe3 {[%clk 0:00:23.2]} 20... Bxf1 {[%clk
0:00:52.2]} 21. Kxf1 {[%clk 0:00:24.1]} 21... Ra5 {[%clk 0:00:44.4]} 22. Kg1
{[%clk 0:00:14.3]} 22... c5 {[%clk 0:00:35.4]} 23. Nc4 {[%clk 0:00:08.5]} 23...
cxd4 {[%clk 0:00:33.2]} 24. cxd4 {[%clk 0:00:07.6]} 24... Rb5 {[%clk 0:00:21.6]}
25. Qc3 {[%clk 0:00:02.7]} 25... Nxd4 {[%clk 0:00:20.6]} 26. Nd6 {[%clk
0:00:02.6]} 26... Ne2+ {[%clk 0:00:13.3]} 0-1

[Event "Early-Titled-Tuesday-Blitz-June-18-2024"]
[Site "Chess.com"]
[Date "2024.06.18"]
[Round "4"]
[White "Supelyel"]
[Black "maurovargas01"]
[Result "1-0"]
[WhiteElo "2442"]
[BlackElo "1942"]
[TimeControl "180+1"]
[EndTime "8:40:55 PDT"]
[Termination "Supelyel won by checkmate"]

1. c4 {[%clk 0:02:39.8]} 1... e5 {[%clk 0:02:58.7]} 2. Nc3 {[%clk 0:02:35.5]}
2... Nc6 {[%clk 0:02:59.6]} 3. g3 {[%clk 0:02:35.5]} 3... f5 {[%clk 0:02:59.9]}
4. Bg2 {[%clk 0:02:35]} 4... Nf6 {[%clk 0:03:00]} 5. e3 {[%clk 0:02:35.5]} 5...
Bb4 {[%clk 0:03:00.1]} 6. Nge2 {[%clk 0:02:35.5]} 6... O-O {[%clk 0:02:58.7]} 7.
d3 {[%clk 0:02:35.8]} 7... d6 {[%clk 0:02:55.2]} 8. Bd2 {[%clk 0:02:35.9]} 8...
Ne7 {[%clk 0:02:49.8]} 9. O-O {[%clk 0:02:34.7]} 9... c6 {[%clk 0:02:48.7]} 10.
a3 {[%clk 0:02:27.3]} 10... Ba5 {[%clk 0:02:48.4]} 11. b4 {[%clk 0:02:27.7]}
11... Bc7 {[%clk 0:02:48.1]} 12. f4 {[%clk 0:02:00.6]} 12... Qe8 {[%clk
0:02:44.2]} 13. b5 {[%clk 0:01:39.1]} 13... Bd7 {[%clk 0:02:43.6]} 14. Rb1
{[%clk 0:01:35.7]} 14... Rb8 {[%clk 0:02:41.2]} 15. Qa4 {[%clk 0:01:35]} 15...
Bb6 {[%clk 0:02:33.8]} 16. Qb3 {[%clk 0:01:26.4]} 16... Kh8 {[%clk 0:02:32.7]}
17. Na4 {[%clk 0:01:22.3]} 17... Qh5 {[%clk 0:02:24]} 18. Nxb6 {[%clk
0:01:17.1]} 18... axb6 {[%clk 0:02:23.2]} 19. Nc3 {[%clk 0:01:13.4]} 19... Ng4
{[%clk 0:02:09.4]} 20. h3 {[%clk 0:01:11.7]} 20... Nf6 {[%clk 0:02:07.3]} 21.
Na4 {[%clk 0:00:57.7]} 21... Nc8 {[%clk 0:01:56]} 22. Qc2 {[%clk 0:00:27.3]}
22... Qg6 {[%clk 0:01:53.8]} 23. Kh1 {[%clk 0:00:26.7]} 23... Qxg3 {[%clk
0:01:51.8]} 24. Rf3 {[%clk 0:00:26.9]} 24... Qg6 {[%clk 0:01:50.1]} 25. Rg1
{[%clk 0:00:26]} 25... Qh6 {[%clk 0:01:44.2]} 26. Bc3 {[%clk 0:00:23]} 26... e4
{[%clk 0:01:40.2]} 27. Rg3 {[%clk 0:00:22.3]} 27... Nh5 {[%clk 0:01:39.1]} 28.
Rg5 {[%clk 0:00:22.1]} 28... cxb5 {[%clk 0:01:19.1]} 29. Qb2 {[%clk 0:00:20.7]}
29... Rf7 {[%clk 0:01:03.9]} 30. Bf1 {[%clk 0:00:15.3]} 30... bxa4 {[%clk
0:00:55.9]} 31. Qe2 {[%clk 0:00:12]} 31... Ne7 {[%clk 0:00:49.8]} 32. Rxh5
{[%clk 0:00:11.6]} 32... Qe6 {[%clk 0:00:36.1]} 33. Rhg5 {[%clk 0:00:11.7]}
33... Rg8 {[%clk 0:00:34.3]} 34. Qh5 {[%clk 0:00:11.5]} 34... h6 {[%clk
0:00:30.7]} 35. Rg6 {[%clk 0:00:09.1]} 35... Nxg6 {[%clk 0:00:30.4]} 36. Rxg6
{[%clk 0:00:10]} 36... Qe7 {[%clk 0:00:27.4]} 37. Qxh6# {[%clk 0:00:10.2]} 1-0

[Event "Early-Titled-Tuesday-Blitz-June-18-2024"]
[Site "Chess.com"]
[Date "2024.06.18"]
[Round "4"]
[White "chessfatbear"]
[Black "Fh2411"]
[Result "1-0"]
[WhiteElo "2765"]
[BlackElo "2556"]
[TimeControl "180+1"]
[EndTime "8:40:56 PDT"]
[Termination "chessfatbear won by resignation"]

1. e4 {[%clk 0:02:59.4]} 1... c6 {[%clk 0:02:59.2]} 2. d4 {[%clk 0:02:58.5]}
2... d5 {[%clk 0:02:59.7]} 3. e5 {[%clk 0:02:59]} 3... Bf5 {[%clk 0:02:59.2]} 4.
Nf3 {[%clk 0:02:59.1]} 4... e6 {[%clk 0:02:59.7]} 5. Be2 {[%clk 0:02:59.3]} 5...
Nd7 {[%clk 0:02:59.7]} 6. O-O {[%clk 0:02:58.8]} 6... Ne7 {[%clk 0:03:00.3]} 7.
c3 {[%clk 0:02:57.9]} 7... h6 {[%clk 0:02:38.8]} 8. Nbd2 {[%clk 0:02:57.1]} 8...
Bh7 {[%clk 0:02:36]} 9. a4 {[%clk 0:02:54.3]} 9... a5 {[%clk 0:02:30.9]} 10. Re1
{[%clk 0:02:50.6]} 10... Nf5 {[%clk 0:02:30.2]} 11. Nf1 {[%clk 0:02:50.2]} 11...
Be7 {[%clk 0:02:26.8]} 12. Bd3 {[%clk 0:02:47.3]} 12... Nf8 {[%clk 0:02:16.4]}
13. b3 {[%clk 0:02:34.5]} 13... Nh4 {[%clk 0:02:01.5]} 14. Nxh4 {[%clk
0:02:32.8]} 14... Bxh4 {[%clk 0:02:01.5]} 15. Ba3 {[%clk 0:02:28]} 15... Be7
{[%clk 0:02:00.2]} 16. f4 {[%clk 0:02:22.2]} 16... Bxd3 {[%clk 0:01:53]} 17.
Qxd3 {[%clk 0:02:21.8]} 17... g6 {[%clk 0:01:51.6]} 18. Ne3 {[%clk 0:02:12.8]}
18... h5 {[%clk 0:01:40.3]} 19. c4 {[%clk 0:02:09.2]} 19... Bxa3 {[%clk
0:01:30.5]} 20. Rxa3 {[%clk 0:02:09.2]} 20... Nd7 {[%clk 0:01:30.9]} 21. Ra2
{[%clk 0:02:03.6]} 21... Qb6 {[%clk 0:01:10.5]} 22. c5 {[%clk 0:01:56.7]} 22...
Qa6 {[%clk 0:00:57.4]} 23. Qc3 {[%clk 0:01:46.3]} 23... b6 {[%clk 0:00:57]} 24.
cxb6 {[%clk 0:01:45.2]} 24... Qxb6 {[%clk 0:00:57.9]} 25. Rc2 {[%clk 0:01:44.8]}
25... Rc8 {[%clk 0:00:46.3]} 26. Rec1 {[%clk 0:01:40.7]} 26... O-O {[%clk
0:00:34.6]} 27. Qd3 {[%clk 0:01:31.9]} 27... c5 {[%clk 0:00:31.9]} 28. dxc5
{[%clk 0:01:30.3]} 28... Rxc5 {[%clk 0:00:31.8]} 29. Rxc5 {[%clk 0:01:27.3]}
29... Nxc5 {[%clk 0:00:32]} 30. Qd4 {[%clk 0:01:27.7]} 30... Nd7 {[%clk
0:00:25.8]} 31. Qxb6 {[%clk 0:01:25.6]} 31... Nxb6 {[%clk 0:00:26.7]} 32. Rc5
{[%clk 0:01:25.2]} 32... Ra8 {[%clk 0:00:25.6]} 33. Nc2 {[%clk 0:01:21.3]} 33...
Kf8 {[%clk 0:00:18.6]} 34. Nd4 {[%clk 0:01:20.1]} 34... Nd7 {[%clk 0:00:18.4]}
35. Rc7 {[%clk 0:01:19.6]} 35... Ke8 {[%clk 0:00:17.1]} 36. Kf2 {[%clk
0:01:18.8]} 36... g5 {[%clk 0:00:10]} 37. g3 {[%clk 0:01:16.7]} 37... h4 {[%clk
0:00:10.5]} 38. Kf3 {[%clk 0:01:16.4]} 38... hxg3 {[%clk 0:00:10.3]} 39. hxg3
{[%clk 0:01:16.7]} 39... gxf4 {[%clk 0:00:11.2]} 40. gxf4 {[%clk 0:01:16.9]}
40... Kd8 {[%clk 0:00:09.5]} 41. Rc1 {[%clk 0:01:11.5]} 41... Ke8 {[%clk
0:00:07.7]} 42. Ke3 {[%clk 0:01:08.8]} 42... Rb8 {[%clk 0:00:06.6]} 43. Rc7
{[%clk 0:01:05.9]} 43... Rb4 {[%clk 0:00:05.2]} 44. Rc8+ {[%clk 0:01:05.2]} 1-0

[Event "Early-Titled-Tuesday-Blitz-June-18-2024"]
[Site "Chess.com"]
[Date "2024.06.18"]
[Round "4"]
[White "SkinnyPuppy8"]
[Black "hellokostya"]
[Result "1-0"]
[WhiteElo "2200"]
[BlackElo "2628"]
[TimeControl "180+1"]
[EndTime "8:40:56 PDT"]
[Termination "SkinnyPuppy8 won by checkmate"]

1. e4 {[%clk 0:02:59]} 1... c5 {[%clk 0:02:58.4]} 2. Nf3 {[%clk 0:02:57.7]} 2...
Nc6 {[%clk 0:02:57.9]} 3. d3 {[%clk 0:02:57.5]} 3... e5 {[%clk 0:02:55.1]} 4. g3
{[%clk 0:02:56.8]} 4... g6 {[%clk 0:02:54.3]} 5. Bg2 {[%clk 0:02:55.2]} 5... Bg7
{[%clk 0:02:55]} 6. Be3 {[%clk 0:02:53.2]} 6... d6 {[%clk 0:02:54.5]} 7. Qd2
{[%clk 0:02:53.5]} 7... h6 {[%clk 0:02:54.3]} 8. c3 {[%clk 0:02:53]} 8... Nge7
{[%clk 0:02:54]} 9. O-O {[%clk 0:02:51.2]} 9... Be6 {[%clk 0:02:51]} 10. Nh4
{[%clk 0:02:46.8]} 10... Qd7 {[%clk 0:02:45.3]} 11. a3 {[%clk 0:02:44.7]} 11...
g5 {[%clk 0:02:42.5]} 12. Nf3 {[%clk 0:02:39.2]} 12... f6 {[%clk 0:02:36.6]} 13.
b4 {[%clk 0:02:33.9]} 13... b6 {[%clk 0:02:32.5]} 14. d4 {[%clk 0:02:23.6]}
14... cxd4 {[%clk 0:02:26.2]} 15. cxd4 {[%clk 0:02:22.7]} 15... Bh3 {[%clk
0:02:24.9]} 16. Nc3 {[%clk 0:01:57.5]} 16... Kf7 {[%clk 0:02:04.9]} 17. Nb5
{[%clk 0:01:38.2]} 17... Rad8 {[%clk 0:01:58.1]} 18. d5 {[%clk 0:01:23.9]} 18...
Nb8 {[%clk 0:01:53.1]} 19. Nxd6+ {[%clk 0:01:23]} 19... Qxd6 {[%clk 0:01:22.1]}
20. Bxh3 {[%clk 0:01:20.9]} 20... h5 {[%clk 0:01:21.9]} 21. Be6+ {[%clk
0:01:15.9]} 21... Kg6 {[%clk 0:01:22.6]} 22. Bxg5 {[%clk 0:01:03.2]} 22... Bh6
{[%clk 0:01:07]} 23. Nh4+ {[%clk 0:00:55.5]} 23... Kg7 {[%clk 0:01:06.9]} 24.
Bxh6+ {[%clk 0:00:55]} 24... Rxh6 {[%clk 0:01:07.1]} 25. Rac1 {[%clk 0:00:37.3]}
25... Rhh8 {[%clk 0:01:05.4]} 26. Rc3 {[%clk 0:00:25]} 26... Qxe6 {[%clk
0:01:03.1]} 27. Rc7 {[%clk 0:00:18.9]} 27... Qg4 {[%clk 0:00:40.8]} 28. Rxe7+
{[%clk 0:00:17.2]} 28... Kf8 {[%clk 0:00:38.7]} 29. Nf5 {[%clk 0:00:16.2]} 29...
h4 {[%clk 0:00:37.3]} 30. f3 {[%clk 0:00:14.4]} 30... Qg6 {[%clk 0:00:36.2]} 31.
g4 {[%clk 0:00:14]} 31... h3 {[%clk 0:00:35.7]} 32. Qc3 {[%clk 0:00:13.3]} 32...
Nd7 {[%clk 0:00:35.6]} 33. Qc7 {[%clk 0:00:12.1]} 33... Qxf5 {[%clk 0:00:20.6]}
34. Qxd8# {[%clk 0:00:12]} 1-0

[Event "Early-Titled-Tuesday-Blitz-June-18-2024"]
[Site "Chess.com"]
[Date "2024.06.18"]
[Round "4"]
[White "yaguigor"]
[Black "cycygogne"]
[Result "1-0"]
[WhiteElo "2647"]
[BlackElo "2216"]
[TimeControl "180+1"]
[EndTime "8:40:58 PDT"]
[Termination "yaguigor won by resignation"]

1. e4 {[%clk 0:03:00.9]} 1... d5 {[%clk 0:02:59.8]} 2. exd5 {[%clk 0:02:58.4]}
2... Qxd5 {[%clk 0:03:00.7]} 3. Nc3 {[%clk 0:02:57.7]} 3... Qd6 {[%clk
0:03:00.9]} 4. d4 {[%clk 0:02:58]} 4... Nf6 {[%clk 0:03:00.9]} 5. Nf3 {[%clk
0:02:58.1]} 5... Bg4 {[%clk 0:03:01.1]} 6. h3 {[%clk 0:02:54.1]} 6... Bh5 {[%clk
0:03:00.4]} 7. g4 {[%clk 0:02:51.6]} 7... Bg6 {[%clk 0:03:00.1]} 8. Ne5 {[%clk
0:02:45.3]} 8... a6 {[%clk 0:02:58.6]} 9. Bg2 {[%clk 0:02:43]} 9... Nc6 {[%clk
0:02:53.2]} 10. Nxc6 {[%clk 0:02:33.8]} 10... bxc6 {[%clk 0:02:54.1]} 11. Qf3
{[%clk 0:02:32.6]} 11... Nd5 {[%clk 0:02:19]} 12. Nxd5 {[%clk 0:02:30.1]} 12...
cxd5 {[%clk 0:02:19.9]} 13. Qxd5 {[%clk 0:02:29.5]} 13... Rb8 {[%clk 0:02:01.8]}
14. Qc6+ {[%clk 0:02:23.4]} 14... Qxc6 {[%clk 0:02:01.7]} 15. Bxc6+ {[%clk
0:02:22.2]} 15... Kd8 {[%clk 0:02:02.3]} 16. c3 {[%clk 0:02:22.5]} 16... Rb6
{[%clk 0:01:55.7]} 17. Bf3 {[%clk 0:02:20.3]} 17... e6 {[%clk 0:01:51.7]} 18. b4
{[%clk 0:02:16.2]} 18... Bd3 {[%clk 0:01:35.1]} 19. Bf4 {[%clk 0:02:11.9]} 19...
Bd6 {[%clk 0:01:29.7]} 20. Bxd6 {[%clk 0:02:10.9]} 20... cxd6 {[%clk 0:01:30.6]}
21. Kd2 {[%clk 0:02:10]} 21... Bc4 {[%clk 0:01:30.5]} 22. a4 {[%clk 0:02:06.5]}
22... d5 {[%clk 0:01:27.2]} 23. Be2 {[%clk 0:02:00.1]} 23... Bxe2 {[%clk
0:01:20.8]} 24. Kxe2 {[%clk 0:01:59.5]} 24... Kc7 {[%clk 0:01:21.5]} 25. Kd3
{[%clk 0:01:57.2]} 25... Rhb8 {[%clk 0:01:20.4]} 26. a5 {[%clk 0:01:56.3]} 26...
Rb5 {[%clk 0:01:19.6]} 27. f4 {[%clk 0:01:55.2]} 27... Kd6 {[%clk 0:01:20]} 28.
Rhf1 {[%clk 0:01:53.5]} 28... R5b7 {[%clk 0:01:11.4]} 29. f5 {[%clk 0:01:51.4]}
29... Rc8 {[%clk 0:01:08.2]} 30. fxe6 {[%clk 0:01:50.3]} 30... fxe6 {[%clk
0:01:09.1]} 31. Rf3 {[%clk 0:01:44.8]} 31... Rbc7 {[%clk 0:01:09.3]} 32. Kd2
{[%clk 0:01:44.6]} 32... e5 {[%clk 0:01:01.1]} 33. dxe5+ {[%clk 0:01:43.2]}
33... Kxe5 {[%clk 0:01:02]} 34. Re1+ {[%clk 0:01:42.8]} 34... Kd6 {[%clk
0:01:02.2]} 35. Rfe3 {[%clk 0:01:39.9]} 35... d4 {[%clk 0:00:58.3]} 36. Rd3
{[%clk 0:01:36]} 36... Rc4 {[%clk 0:00:48.8]} 37. Re4 {[%clk 0:01:32]} 37... Rf8
{[%clk 0:00:39.9]} 38. Rdxd4+ {[%clk 0:01:30.1]} 38... Rxd4+ {[%clk 0:00:39.7]}
39. Rxd4+ {[%clk 0:01:30.2]} 39... Kc6 {[%clk 0:00:40]} 40. Ke3 {[%clk
0:01:29.2]} 40... Rf1 {[%clk 0:00:38.2]} 41. Rc4+ {[%clk 0:01:24.7]} 41... Kd6
{[%clk 0:00:37.5]} 42. Rf4 {[%clk 0:01:21.7]} 42... Rc1 {[%clk 0:00:31.5]} 43.
Kd2 {[%clk 0:01:19.8]} 43... Rh1 {[%clk 0:00:31.1]} 44. Rf3 {[%clk 0:01:16.6]}
44... Kd5 {[%clk 0:00:29.8]} 45. Re3 {[%clk 0:01:14.2]} 45... Rh2+ {[%clk
0:00:27.3]} 46. Kd3 {[%clk 0:01:13.3]} 46... Rh1 {[%clk 0:00:27.8]} 47. c4+
{[%clk 0:01:13.1]} 47... Kd6 {[%clk 0:00:28.3]} 48. Kd4 {[%clk 0:01:12.4]} 48...
Rd1+ {[%clk 0:00:27.4]} 49. Rd3 {[%clk 0:01:12.7]} 49... Rb1 {[%clk 0:00:25.8]}
50. c5+ {[%clk 0:01:11.3]} 50... Kc6 {[%clk 0:00:26.1]} 51. Kc4 {[%clk 0:01:11]}
51... Rb2 {[%clk 0:00:25.2]} 52. Rd6+ {[%clk 0:01:10]} 52... Kb7 {[%clk
0:00:25.5]} 53. Rd7+ {[%clk 0:01:01.9]} 53... Kc6 {[%clk 0:00:25.6]} 54. Rxg7
{[%clk 0:01:01.9]} 1-0

[Event "Early-Titled-Tuesday-Blitz-June-18-2024"]
[Site "Chess.com"]
[Date "2024.06.18"]
[Round "4"]
[White "vladislavkovalev"]
[Black "LeRoidesChampions"]
[Result "1-0"]
[WhiteElo "2846"]
[BlackElo "2671"]
[TimeControl "180+1"]
[EndTime "8:40:59 PDT"]
[Termination "vladislavkovalev won by resignation"]

1. e4 {[%clk 0:02:57.1]} 1... c5 {[%clk 0:02:59.7]} 2. Nf3 {[%clk 0:02:57]} 2...
d6 {[%clk 0:03:00.6]} 3. Bb5+ {[%clk 0:02:57.4]} 3... Nd7 {[%clk 0:02:55.8]} 4.
O-O {[%clk 0:02:57.3]} 4... a6 {[%clk 0:02:55.5]} 5. Bd3 {[%clk 0:02:57.9]} 5...
Ngf6 {[%clk 0:02:53.8]} 6. c3 {[%clk 0:02:58.4]} 6... g5 {[%clk 0:02:46.2]} 7.
Nxg5 {[%clk 0:02:54]} 7... Ne5 {[%clk 0:02:43.4]} 8. Be2 {[%clk 0:02:53.8]} 8...
Rg8 {[%clk 0:02:40.4]} 9. d4 {[%clk 0:02:52.8]} 9... cxd4 {[%clk 0:02:33.8]} 10.
cxd4 {[%clk 0:02:53.7]} 10... Ng6 {[%clk 0:02:34.5]} 11. Nc3 {[%clk 0:02:40.8]}
11... Nh4 {[%clk 0:02:24.5]} 12. e5 {[%clk 0:02:24.4]} 12... Bh6 {[%clk
0:02:16]} 13. f4 {[%clk 0:01:31.7]} 13... dxe5 {[%clk 0:02:06.6]} 14. dxe5
{[%clk 0:01:32.6]} 14... Qb6+ {[%clk 0:02:06.8]} 15. Kh1 {[%clk 0:01:03.6]}
15... Qc6 {[%clk 0:02:05.7]} 16. Nf3 {[%clk 0:00:34.7]} 16... Rxg2 {[%clk
0:01:49.7]} 17. exf6 {[%clk 0:00:15.9]} 17... Bg4 {[%clk 0:01:49.7]} 18. Qd5
{[%clk 0:00:09]} 18... Qxf6 {[%clk 0:01:39.5]} 19. Ne4 {[%clk 0:00:02.1]} 19...
Qg7 {[%clk 0:01:25]} 20. Nxh4 {[%clk 0:00:02]} 20... Rxe2 {[%clk 0:01:18.5]} 21.
Ng3 {[%clk 0:00:02.5]} 21... Rd8 {[%clk 0:01:16.1]} 22. Qxb7 {[%clk 0:00:01]}
22... Qf6 {[%clk 0:01:13]} 23. f5 {[%clk 0:00:01.1]} 23... Qxh4 {[%clk
0:01:11.9]} 24. Nxe2 {[%clk 0:00:01.8]} 24... Bxe2 {[%clk 0:01:10.2]} 25. Qc6+
{[%clk 0:00:02.3]} 25... Kf8 {[%clk 0:01:09.3]} 26. Qxh6+ {[%clk 0:00:02]} 26...
Qxh6 {[%clk 0:01:08.7]} 27. Bxh6+ {[%clk 0:00:02.9]} 27... Ke8 {[%clk
0:01:09.3]} 28. Rf2 {[%clk 0:00:03.2]} 28... Bd3 {[%clk 0:01:08.3]} 29. Re1
{[%clk 0:00:03.6]} 29... Rd5 {[%clk 0:01:08.1]} 30. Bg5 {[%clk 0:00:03.9]} 30...
e5 {[%clk 0:01:04.3]} 31. fxe6 {[%clk 0:00:04.8]} 31... fxe6 {[%clk 0:01:02.6]}
32. Rxe6+ {[%clk 0:00:04.8]} 32... Kd7 {[%clk 0:01:03.2]} 33. Re7+ {[%clk
0:00:05.4]} 33... Kd6 {[%clk 0:01:03.1]} 34. Bf6 {[%clk 0:00:04.7]} 34... Bf5
{[%clk 0:01:01]} 35. Kg2 {[%clk 0:00:03.8]} 35... Bd7 {[%clk 0:00:58.6]} 36. Re3
{[%clk 0:00:03.9]} 36... h5 {[%clk 0:00:57.4]} 37. Kg3 {[%clk 0:00:03.7]} 37...
Kc6 {[%clk 0:00:55.1]} 38. h3 {[%clk 0:00:04]} 38... Kb7 {[%clk 0:00:55.5]} 39.
Rff3 {[%clk 0:00:03.3]} 39... Rd1 {[%clk 0:00:55.4]} 40. Rd3 {[%clk 0:00:03.8]}
40... Rg1+ {[%clk 0:00:50.4]} 41. Kf2 {[%clk 0:00:03.9]} 1-0

[Event "Early-Titled-Tuesday-Blitz-June-18-2024"]
[Site "Chess.com"]
[Date "2024.06.18"]
[Round "4"]
[White "gabduschew"]
[Black "CMButgood"]
[Result "1-0"]
[WhiteElo "2308"]
[BlackElo "1992"]
[TimeControl "180+1"]
[EndTime "8:41:02 PDT"]
[Termination "gabduschew won on time"]

1. e4 {[%clk 0:03:00.9]} 1... c5 {[%clk 0:03:00]} 2. Nf3 {[%clk 0:03:00.7]} 2...
d6 {[%clk 0:03:00.6]} 3. d4 {[%clk 0:03:00.5]} 3... cxd4 {[%clk 0:03:01.5]} 4.
Nxd4 {[%clk 0:03:01.2]} 4... Nf6 {[%clk 0:03:02.2]} 5. Bd3 {[%clk 0:03:00.7]}
5... Nc6 {[%clk 0:03:01.8]} 6. Nxc6 {[%clk 0:02:57]} 6... bxc6 {[%clk
0:03:01.9]} 7. c4 {[%clk 0:02:56.8]} 7... g6 {[%clk 0:03:00.5]} 8. Nc3 {[%clk
0:02:54.6]} 8... Bg7 {[%clk 0:03:00.1]} 9. O-O {[%clk 0:02:53.2]} 9... O-O
{[%clk 0:03:00.8]} 10. Qe2 {[%clk 0:02:34.9]} 10... Rb8 {[%clk 0:02:46.8]} 11.
Rb1 {[%clk 0:02:31.4]} 11... Nd7 {[%clk 0:02:38.5]} 12. Bd2 {[%clk 0:02:31.2]}
12... Ne5 {[%clk 0:02:25.9]} 13. Bc2 {[%clk 0:02:31.3]} 13... Ba6 {[%clk
0:02:23.6]} 14. b3 {[%clk 0:02:28.3]} 14... Qc7 {[%clk 0:02:15.1]} 15. f4 {[%clk
0:02:16.8]} 15... Nd7 {[%clk 0:02:12.7]} 16. f5 {[%clk 0:02:17.1]} 16... Ne5
{[%clk 0:01:56.7]} 17. Rbd1 {[%clk 0:01:55.1]} 17... Rfd8 {[%clk 0:01:45.6]} 18.
Bg5 {[%clk 0:01:40.7]} 18... Nxc4 {[%clk 0:01:43.8]} 19. Na4 {[%clk 0:01:25.3]}
19... h6 {[%clk 0:01:25.7]} 20. Bc1 {[%clk 0:01:09.8]} 20... Na3 {[%clk
0:01:20.9]} 21. Qxa6 {[%clk 0:01:05]} 21... Nxc2 {[%clk 0:01:20.6]} 22. Qc4
{[%clk 0:01:02.9]} 22... Nb4 {[%clk 0:01:10.6]} 23. fxg6 {[%clk 0:01:03]} 23...
d5 {[%clk 0:01:07.1]} 24. gxf7+ {[%clk 0:00:59.1]} 24... Kh8 {[%clk 0:01:00.2]}
25. exd5 {[%clk 0:00:31.6]} 25... Nxd5 {[%clk 0:00:55.3]} 26. Qh4 {[%clk
0:00:31.3]} 26... Rb4 {[%clk 0:00:54.5]} 27. Qh5 {[%clk 0:00:26.1]} 27... Nf6
{[%clk 0:00:52.1]} 28. Rxd8+ {[%clk 0:00:17.2]} 28... Qxd8 {[%clk 0:00:53]} 29.
Rxf6 {[%clk 0:00:16.3]} 29... exf6 {[%clk 0:00:42.1]} 30. Bxh6 {[%clk
0:00:15.9]} 30... Rh4 {[%clk 0:00:01]} 31. Qxh4 {[%clk 0:00:15.9]} 1-0